bitfinex-derivatives/quotes_BTCF0:USTF0_20250709
["timestamp","ask_amount","ask_price","bid_price","bid_amount"]
[1752048530546,0.14198093,108840.0,108830.0,1.23526127]
[1752048530842,0.14198093,108840.0,108830.0,1.26816127]
[1752048531249,0.14198093,108840.0,108830.0,1.01728654]
[1752048532945,0.14198093,108840.0,108830.0,1.02806064]
[1752048534045,0.14198093,108840.0,108830.0,1.01728654]
[1752048534351,0.14198093,108840.0,108830.0,1.04240747]
[1752048539343,0.32571583,108840.0,108830.0,1.04240747]
[1752048540652,0.07658093,108840.0,108830.0,0.93755431]
[1752048540846,0.07658093,108840.0,108830.0,0.96895649]
[1752048541046,0.07658093,108840.0,108830.0,1.33895649]
[1752048541255,0.07658093,108840.0,108830.0,1.28379302]
[1752048541752,0.07658093,108840.0,108830.0,1.33894306]
[1752048542941,0.07658093,108840.0,108830.0,1.32816919]
[1752048543139,0.07658093,108840.0,108830.0,1.33894301]
[1752048543853,0.002,108840.0,108830.0,1.33894301]
[1752048544055,0.002,108840.0,108830.0,1.28379297]
[1752048544252,0.002,108840.0,108830.0,0.91379297]
[1752048544555,0.002,108840.0,108830.0,1.28893911]
[1752048545053,0.002,108840.0,108830.0,1.23379297]
[1752048545440,0.1857349,108840.0,108830.0,1.00666528]
[1752048545646,0.2474349,108840.0,108830.0,1.00666528]
[1752048545945,0.1388996,108840.0,108830.0,0.96191604]
[1752048546153,0.1388996,108840.0,108830.0,0.97626428]
[1752048546852,0.3226345,108840.0,108830.0,0.97626428]
[1752048547859,0.1388996,108840.0,108830.0,0.97626428]
[1752048550462,0.3226345,108840.0,108830.0,0.97626428]
[1752048551958,0.3226345,108840.0,108830.0,0.96191604]
[1752048552163,0.3226345,108840.0,108830.0,0.97624288]
[1752048555066,0.3226345,108840.0,108830.0,0.97624303]
[1752048556967,0.3226345,108840.0,108830.0,0.96546891]
[1752048557161,0.3226345,108840.0,108830.0,0.95114222]
[1752048557361,0.3226345,108840.0,108830.0,0.70026749]
[1752048557660,0.3226345,108840.0,108830.0,0.95114222]
[1752048560364,0.3226345,108840.0,108830.0,0.70026749]
[1752048560667,0.3226345,108840.0,108830.0,0.95114222]
[1752048561765,0.3226345,108840.0,108830.0,0.96191634]
[1752048562065,0.3226345,108840.0,108830.0,0.97619107]
[1752048570864,0.13747212,108860.0,108830.0,1.2270658]
[1752048571170,0.22390126,108860.0,108850.0,0.43459283]
[1752048571368,0.22390126,108860.0,108850.0,0.53952963]
[1752048571564,0.2300798,108860.0,108850.0,0.53952963]
[1752048571767,0.2300798,108860.0,108850.0,0.53951759]
[1752048571968,0.04637,108860.0,108850.0,0.53951759]
[1752048572173,0.0614,108860.0,108850.0,0.82159232]
[1752048572362,0.0304,108860.0,108850.0,1.19159232]
[1752048572567,0.0304,108860.0,108850.0,1.27853936]
[1752048572867,0.2142865,108870.0,108860.0,0.1837012]
[1752048573074,0.2446865,108870.0,108860.0,0.76765542]
[1752048573271,0.2600565,108870.0,108860.0,0.79037542]
[1752048573468,0.2600565,108870.0,108860.0,0.74901747]
[1752048574174,0.3456706,108870.0,108860.0,0.73824335]
[1752048574870,0.3486706,108870.0,108860.0,0.73824335]
[1752048575271,0.59954533,108870.0,108860.0,0.73824335]
[1752048576377,0.59954533,108870.0,108860.0,0.23649389]
[1752048576562,0.59954533,108870.0,108860.0,0.73824335]
[1752048576872,0.5903399,108870.0,108860.0,0.73824335]
[1752048578474,0.59929902,108870.0,108860.0,0.72398066]
[1752048579067,0.5903399,108870.0,108860.0,0.72398066]
[1752048580475,0.5903399,108870.0,108860.0,0.54027946]
[1752048580675,0.5903399,108870.0,108860.0,0.03853]
[1752048580974,0.5903399,108870.0,108860.0,0.28940473]
[1752048581572,0.5903399,108870.0,108850.0,0.24883625]
[1752048581573,0.1837014,108860.0,108850.0,0.24883625]
[1752048581775,0.76490086,108860.0,108850.0,0.24883625]
[1752048581966,0.51402613,108860.0,108850.0,0.51562098]
[1752048582369,0.51402613,108860.0,108850.0,0.33190268]
[1752048582774,0.51402613,108860.0,108850.0,0.51562078]
[1752048583173,0.51502613,108860.0,108850.0,0.51562078]
[1752048583674,0.76590086,108860.0,108850.0,0.26678473]
[1752048583877,0.1837181,108850.0,108840.0,0.60080272]
[1752048584077,0.51544283,108850.0,108840.0,0.61157562]
[1752048584278,0.51544283,108850.0,108840.0,0.62748562]
[1752048585871,0.51544283,108850.0,108840.0,0.87936035]
[1752048586170,0.49959283,108850.0,108840.0,0.87936035]
[1752048586682,0.51544283,108850.0,108840.0,0.87936035]
[1752048586871,0.2645681,108850.0,108840.0,0.87936035]
[1752048588175,0.51544283,108850.0,108840.0,0.13203789]
[1752048588370,0.51544283,108850.0,108840.0,0.52741048]
[1752048589579,0.51544283,108850.0,108840.0,0.52741065]
[1752048590081,0.51544283,108850.0,108840.0,0.77828538]
[1752048591788,0.2645681,108850.0,108840.0,0.77828538]
[1752048592589,0.53951283,108850.0,108840.0,0.04235795]
[1752048592775,0.53951283,108850.0,108840.0,0.06904196]
[1752048593084,0.53951283,108850.0,108840.0,0.31991681]
[1752048593380,0.51544283,108850.0,108840.0,0.31991681]
[1752048594071,0.51544283,108850.0,108840.0,0.33405924]
[1752048594781,0.51544283,108850.0,108840.0,0.08318451]
[1752048594981,0.51544283,108850.0,108840.0,0.33405924]
[1752048595588,0.51544283,108850.0,108840.0,0.08318451]
[1752048595885,0.51544283,108850.0,108840.0,0.33405924]
[1752048597792,0.51544283,108850.0,108840.0,0.32328511]
[1752048600000,0.51744283,108850.0,108840.0,0.32228511]
[1752048600593,0.51744283,108850.0,108840.0,0.32223524]
[1752048604506,0.2665681,108850.0,108840.0,0.57310997]
[1752048604703,0.51744283,108850.0,108840.0,0.78060487]
[1752048604907,0.2665681,108850.0,108840.0,0.79137896]
[1752048605106,0.51744283,108850.0,108840.0,0.82137896]
[1752048605509,0.51744283,108850.0,108840.0,0.81060487]
[1752048605811,0.51744283,108850.0,108840.0,0.82137896]
[1752048606298,0.2665681,108850.0,108840.0,0.82137896]
[1752048606496,0.2665681,108850.0,108840.0,0.82142852]
[1752048607813,0.51744283,108850.0,108840.0,0.82142852]
[1752048608220,0.2186181,108850.0,108840.0,0.82142852]
[1752048608514,0.1857181,108850.0,108840.0,0.9067811]
[1752048608815,0.002,108850.0,108840.0,1.19903875]
[1752048609007,0.002,108850.0,108840.0,0.94816402]
[1752048609512,0.001,108850.0,108840.0,0.94916402]
[1752048610108,0.3547994,108860.0,108850.0,0.1837181]
[1752048610310,0.3547994,108860.0,108850.0,0.54708513]
[1752048610609,0.3547994,108860.0,108850.0,0.60113513]
[1752048612113,0.3547994,108860.0,108850.0,0.9071569]
[1752048612114,0.1837138,108860.0,108850.0,0.9071569]
[1752048612318,0.1847138,108860.0,108850.0,0.9071569]
[1752048613015,0.1847138,108860.0,108850.0,0.65628217]
[1752048614713,0.1857138,108860.0,108850.0,0.65628217]
[1752048617817,0.2013538,108860.0,108850.0,0.60113513]
[1752048618114,0.48262853,108860.0,108850.0,0.60113513]
[1752048618317,0.2161138,108860.0,108850.0,0.60113385]
[1752048618612,0.2317538,108860.0,108850.0,0.60113385]
[1752048620203,0.2317538,108860.0,108850.0,0.6013056]
[1752048622512,0.2317538,108860.0,108850.0,0.5711056]
[1752048622714,0.2623538,108860.0,108850.0,0.5711056]
[1752048623014,0.51322853,108860.0,108850.0,0.3873875]
[1752048623922,0.51322853,108860.0,108850.0,0.5711055]
[1752048624523,0.51322853,108860.0,108850.0,0.56033269]
[1752048624923,0.51322853,108860.0,108850.0,0.57110578]
[1752048625524,0.51322853,108860.0,108850.0,0.57110605]
[1752048628326,0.51322853,108860.0,108850.0,0.38738805]
[1752048628728,0.51322853,108860.0,108850.0,0.57110605]
[1752048629026,0.51322853,108860.0,108850.0,0.56033296]
[1752048629219,0.51322853,108860.0,108850.0,0.57110596]
[1752048631326,0.51322853,108860.0,108850.0,0.38738796]
[1752048631628,0.76410326,108860.0,108850.0,0.30655496]
[1752048631814,0.51322853,108860.0,108850.0,0.32176496]
[1752048632326,0.51322853,108860.0,108850.0,0.30655496]
[1752048632526,0.51322853,108860.0,108850.0,0.32176496]
[1752048632723,0.51322853,108860.0,108850.0,0.28044874]
[1752048633030,0.78686326,108860.0,108850.0,0.02957401]
[1752048633231,0.78686326,108860.0,108850.0,0.28044874]
[1752048633826,0.78686326,108860.0,108850.0,0.02957401]
[1752048634923,0.86921792,108860.0,108850.0,0.02957401]
[1752048636426,0.78686326,108860.0,108850.0,0.02957401]
[1752048637334,0.53598853,108860.0,108850.0,0.28044874]
[1752048637831,0.51322853,108860.0,108850.0,0.28044874]
[1752048639933,0.51269853,108860.0,108850.0,0.28045874]
[1752048642835,0.51269853,108860.0,108850.0,0.26609473]
[1752048646639,0.51269853,108860.0,108850.0,0.01522]
[1752048646832,0.51269853,108860.0,108850.0,0.26609473]
[1752048647842,0.51269853,108860.0,108850.0,0.30741095]
[1752048648142,0.51269853,108860.0,108850.0,0.51489885]
[1752048648549,0.49758853,108860.0,108850.0,0.51489885]
[1752048649143,0.51269853,108860.0,108850.0,0.51489885]
[1752048649549,0.49758853,108860.0,108850.0,0.51489885]
[1752048649751,0.49758853,108860.0,108850.0,0.54729885]
[1752048650046,0.51269853,108860.0,108850.0,0.54729885]
[1752048652853,0.51269853,108860.0,108850.0,0.36358095]
[1752048653855,0.51269853,108860.0,108850.0,0.374354]
[1752048654156,0.51269853,108860.0,108850.0,0.38871807]
[1752048656657,0.2618238,108860.0,108850.0,0.38871807]
[1752048656856,0.51269853,108860.0,108850.0,0.57243607]
[1752048657255,0.51269853,108860.0,108850.0,0.38871807]
[1752048662850,0.51269853,108860.0,108850.0,0.36494807]
[1752048663660,0.51269853,108860.0,108850.0,0.36494806]
[1752048664459,0.51269853,108860.0,108850.0,0.33254806]
[1752048666765,0.51269853,108860.0,108850.0,0.33254803]
[1752048669463,0.49758853,108860.0,108850.0,0.0664533]
[1752048669663,0.76453326,108860.0,108850.0,0.33250842]
[1752048672165,0.76453326,108860.0,108850.0,0.08163369]
[1752048672356,0.76453326,108860.0,108850.0,0.33250842]
[1752048672767,0.51365853,108860.0,108850.0,0.33250842]
[1752048672963,0.49758853,108860.0,108850.0,0.31732842]
[1752048673265,0.51365853,108860.0,108850.0,0.33250842]
[1752048685372,0.76453326,108860.0,108850.0,0.33250842]
[1752048686674,0.76453326,108860.0,108850.0,0.08163369]
[1752048686870,0.76453326,108860.0,108850.0,0.33250842]
[1752048689174,0.88869326,108860.0,108850.0,0.06645369]
[1752048689371,0.97104792,108860.0,108850.0,0.06645369]
[1752048689578,0.97104792,108860.0,108850.0,0.01436427]
[1752048701091,0.1837346,108840.0,108830.0,0.34253844]
[1752048701292,0.45083933,108840.0,108830.0,0.39724503]
[1752048701481,0.48393933,108840.0,108830.0,0.39724503]
[1752048701682,0.46770933,108840.0,108830.0,0.39724503]
[1752048701883,0.48393933,108840.0,108830.0,0.39724503]
[1752048702089,0.46770933,108840.0,108830.0,0.35592881]
[1752048702392,0.48393933,108840.0,108830.0,0.35592881]
[1752048702989,0.48393933,108840.0,108830.0,0.35692881]
[1752048703190,0.48393933,108840.0,108830.0,0.35892881]
[1752048705798,0.48393933,108840.0,108830.0,0.10805408]
[1752048705983,0.48393933,108840.0,108830.0,0.35892881]
[1752048706391,0.48393933,108840.0,108830.0,0.10805408]
[1752048706593,0.48393933,108840.0,108830.0,0.35892881]
[1752048708193,0.48393933,108840.0,108830.0,0.35892945]
[1752048710591,0.48393933,108840.0,108830.0,0.39062945]
[1752048712396,0.2330646,108840.0,108830.0,0.39062945]
[1752048712594,0.48393933,108840.0,108830.0,0.39062945]
[1752048714897,0.48393933,108840.0,108830.0,0.37626222]
[1752048715294,0.48393933,108840.0,108830.0,0.39062881]
[1752048715483,0.48393933,108840.0,108830.0,0.37626222]
[1752048715992,0.48493933,108840.0,108830.0,0.37526222]
[1752048716193,0.48593933,108840.0,108830.0,0.37326222]
[1752048717393,0.48593933,108840.0,108830.0,0.42535339]
[1752048717594,0.48593933,108840.0,108830.0,0.41457844]
[1752048717796,0.48593933,108840.0,108830.0,0.43972]
[1752048718091,0.48593933,108840.0,108830.0,0.42207251]
[1752048720494,0.48593933,108840.0,108830.0,0.17119778]
[1752048720699,0.48593933,108840.0,108830.0,0.42207251]
[1752048721698,0.48593933,108840.0,108830.0,0.42207272]
[1752048724603,0.48593933,108840.0,108830.0,0.41129756]
[1752048724805,0.2350646,108840.0,108830.0,0.42207267]
[1752048724997,0.2019646,108840.0,108830.0,0.42207267]
[1752048727605,0.2019646,108840.0,108830.0,0.42207233]
[1752048727797,0.45283933,108840.0,108830.0,0.42207233]
[1752048728704,0.2019646,108840.0,108830.0,0.42207233]
[1752048729003,0.45283933,108840.0,108830.0,0.42207233]
[1752048729208,0.45283933,108840.0,108830.0,0.47721937]
[1752048731006,0.2019646,108840.0,108830.0,0.47721937]
[1752048731607,0.2331646,108840.0,108830.0,0.47721937]
[1752048733411,0.2331646,108840.0,108830.0,0.42207233]
[1752048733910,0.48403933,108840.0,108830.0,0.47721937]
[1752048735317,0.48403933,108840.0,108830.0,0.1711976]
[1752048735518,0.48403933,108840.0,108830.0,0.42207233]
[1752048736918,0.48403933,108840.0,108830.0,0.39037233]
[1752048737319,0.51673933,108840.0,108830.0,0.39037233]
[1752048738318,0.51673933,108840.0,108830.0,0.39037273]
[1752048740222,0.51673933,108840.0,108830.0,0.44551977]
[1752048741824,0.51673933,108840.0,108830.0,0.44557229]
[1752048742023,0.2658646,108840.0,108830.0,0.44557229]
[1752048742231,0.51673933,108840.0,108830.0,0.44557229]
[1752048743230,0.51673933,108840.0,108830.0,0.39042525]
[1752048745727,0.51673933,108840.0,108830.0,0.37605852]
[1752048745928,0.51673933,108840.0,108830.0,0.39042519]
[1752048751430,0.51673933,108840.0,108830.0,0.35772519]
[1752048755239,0.51673933,108840.0,108830.0,0.10685046]
[1752048755442,0.51673933,108840.0,108830.0,0.35772519]
[1752048762345,0.51673933,108840.0,108830.0,0.10685046]
[1752048762541,0.51673933,108840.0,108830.0,0.35772519]
[1752048762941,0.51673933,108840.0,108830.0,0.41287223]
[1752048763142,0.51673933,108840.0,108830.0,0.35772519]
[1752048767345,0.2658646,108840.0,108830.0,0.35772519]
[1752048767544,0.51673933,108840.0,108830.0,0.35772519]
[1752048777650,0.2658646,108840.0,108830.0,0.35772519]
[1752048777858,0.51673933,108840.0,108830.0,0.34695017]
[1752048778059,0.51673933,108840.0,108830.0,0.33258347]
[1752048778858,0.51673933,108840.0,108830.0,0.3577291]
[1752048779063,0.51673933,108840.0,108830.0,0.34695403]
[1752048779760,0.51673933,108840.0,108830.0,0.33258726]
[1752048780958,0.51673933,108840.0,108830.0,0.35772874]
[1752048781151,0.51673933,108840.0,108830.0,0.34336218]
[1752048781351,0.51673933,108840.0,108830.0,0.33258726]
[1752048781655,0.51673933,108840.0,108830.0,0.35772874]
[1752048782055,0.51673933,108840.0,108830.0,0.34336218]
[1752048782360,0.51673933,108840.0,108830.0,0.35772874]
[1752048783350,0.51673933,108840.0,108830.0,0.41287578]
[1752048783761,0.2331646,108840.0,108830.0,0.59662738]
[1752048784054,0.1857346,108840.0,108830.0,0.87880211]
[1752048784262,0.1857346,108840.0,108830.0,0.90910211]
[1752048784459,0.1857346,108840.0,108830.0,0.86772958]
[1752048784860,0.1847346,108840.0,108830.0,0.86872958]
[1752048785355,0.1847346,108840.0,108830.0,0.86772958]
[1752048785560,0.1847346,108840.0,108830.0,0.86872958]
[1752048786363,0.1837346,108840.0,108830.0,0.86872958]
[1752048787056,0.1837346,108840.0,108830.0,0.95142612]
[1752048788562,0.1837346,108840.0,108830.0,0.86872958]
[1752048789271,0.1837346,108840.0,108830.0,0.85493073]
[1752048790570,0.1837346,108840.0,108830.0,0.84415581]
[1752048790867,0.1837346,108840.0,108830.0,0.8549302]
[1752048791368,0.1837346,108840.0,108830.0,0.91007724]
[1752048791867,0.1837346,108840.0,108830.0,0.91006899]
[1752048792069,0.1837346,108840.0,108830.0,0.86872905]
[1752048793171,0.1837346,108840.0,108830.0,0.91006365]
[1752048793668,0.1837346,108840.0,108830.0,0.9100633]
[1752048794270,0.1837346,108840.0,108830.0,0.8687287]
[1752048795272,0.1837346,108840.0,108830.0,0.61785397]
[1752048796371,0.1837346,108840.0,108830.0,0.65918369]
[1752048796669,0.1837346,108840.0,108830.0,0.61785397]
[1752048797973,0.1837346,108840.0,108830.0,0.8687287]
[1752048800273,0.1837346,108840.0,108830.0,0.86872869]
[1752048800570,0.1837346,108840.0,108830.0,0.91005696]
[1752048800873,0.1837346,108840.0,108830.0,0.65918223]
[1752048802877,0.2167346,108840.0,108830.0,0.65918223]
[1752048803371,0.42047093,108850.0,108840.0,0.1837347]
[1752048803372,0.3073863,108850.0,108840.0,0.1837347]
[1752048803574,0.3556363,108850.0,108840.0,0.76811386]
[1752048803766,0.3556363,108850.0,108840.0,0.79159386]
[1752048804574,0.3556363,108850.0,108840.0,0.79159358]
[1752048804776,0.3566363,108850.0,108840.0,0.79159358]
[1752048805579,0.3576363,108850.0,108840.0,0.79159358]
[1752048807879,0.3576363,108850.0,108840.0,0.77722702]
[1752048808179,0.3576363,108850.0,108840.0,0.79159202]
[1752048811374,0.3576363,108850.0,108840.0,0.84673906]
[1752048811776,0.3576363,108850.0,108840.0,0.87843906]
[1752048814781,0.3576363,108850.0,108840.0,0.87843813]
[1752048817081,0.3576363,108850.0,108840.0,0.82329109]
[1752048826593,0.3576363,108850.0,108840.0,0.19295397]
[1752048826889,0.3576363,108850.0,108840.0,0.79159109]
[1752048828391,0.60851103,108850.0,108840.0,0.75026198]
[1752048828591,0.60851103,108850.0,108840.0,0.79160752]
[1752048829383,0.3576363,108850.0,108840.0,0.79160752]
[1752048832488,0.3576363,108850.0,108840.0,0.79160773]
[1752048833192,0.3576363,108850.0,108840.0,0.84675477]
[1752048834194,0.3576363,108850.0,108840.0,0.79160773]
[1752048834889,0.3576363,108850.0,108840.0,0.84675477]
[1752048835391,0.3551363,108850.0,108840.0,0.84675477]
[1752048842397,0.3551363,108850.0,108840.0,0.8467558]
[1752048843099,0.3551363,108850.0,108840.0,0.79160876]
[1752048843300,0.3551363,108850.0,108840.0,0.8467558]
[1752048843689,0.3551363,108850.0,108840.0,0.84675537]
[1752048844201,0.3551363,108850.0,108840.0,0.60787363]
[1752048844497,0.3551363,108850.0,108840.0,0.79160833]
[1752048846597,0.3551363,108850.0,108840.0,0.79160855]
[1752048848307,0.3551363,108850.0,108840.0,0.60787385]
[1752048848896,0.60601103,108850.0,108840.0,0.84675559]
[1752048849596,0.60601103,108850.0,108840.0,0.84675575]
[1752048849799,0.3551363,108850.0,108840.0,0.84675575]
[1752048855406,0.3551363,108850.0,108840.0,0.82161674]
[1752048855607,0.3551363,108850.0,108840.0,0.84675575]
[1752048858812,0.3551363,108850.0,108840.0,0.87695575]
[1752048864209,0.3107863,108850.0,108840.0,0.8938906]
[1752048864409,0.3107863,108850.0,108840.0,0.90825536]
[1752048867217,0.3107863,108850.0,108840.0,0.90825506]
[1752048868013,0.3107863,108850.0,108840.0,0.86690952]
[1752048879031,0.3107863,108850.0,108840.0,0.8417712]
[1752048879232,0.3107863,108850.0,108840.0,0.86690887]
[1752048882337,0.3107863,108850.0,108840.0,0.94960541]
[1752048883636,0.3107863,108850.0,108840.0,0.86690887]
[1752048885535,0.3107863,108850.0,108840.0,0.94960541]
[1752048886837,0.3107863,108850.0,108840.0,0.86690887]
[1752048888337,0.3107863,108850.0,108840.0,0.83560887]
[1752048888539,0.3418863,108850.0,108840.0,0.83560887]
[1752048893650,0.3582863,108850.0,108840.0,0.91830541]
[1752048900658,0.3123558,108850.0,108840.0,0.83560887]
[1752048900851,0.002,108850.0,108840.0,1.4564836]
[1752048901060,0.3521986,108860.0,108850.0,0.1837178]
[1752048901245,0.3521986,108860.0,108850.0,0.79214117]
[1752048902251,0.3685986,108860.0,108850.0,0.79214117]
[1752048902457,0.3521986,108860.0,108850.0,0.79214117]
[1752048902658,0.3531986,108860.0,108850.0,0.79214117]
[1752048903158,0.3531986,108860.0,108850.0,0.54126614]
[1752048903659,0.3541986,108860.0,108850.0,0.54126614]
[1752048903859,0.3541986,108860.0,108850.0,0.79214087]
[1752048904061,0.3541986,108860.0,108850.0,0.54126614]
[1752048904463,0.3082697,108860.0,108850.0,0.54126614]
[1752048905463,0.3082697,108860.0,108850.0,0.55034138]
[1752048906654,0.3246697,108860.0,108850.0,0.55034138]
[1752048906862,0.3246697,108860.0,108850.0,0.60548842]
[1752048907162,0.3246697,108860.0,108850.0,0.59641318]
[1752048909364,0.3570697,108860.0,108850.0,0.59641318]
[1752048909564,0.3570697,108860.0,108850.0,0.62701318]
[1752048910568,0.3570697,108860.0,108850.0,0.63634387]
[1752048910863,0.3570697,108860.0,108850.0,0.61624019]
[1752048911065,0.3570697,108860.0,108850.0,0.6270128]
[1752048912761,0.3570697,108860.0,108850.0,0.58564656]
[1752048912966,0.3570697,108860.0,108850.0,0.62697761]
[1752048916874,0.3570697,108860.0,108850.0,0.62697669]
[1752048922781,0.3570697,108860.0,108850.0,0.62697667]
[1752048924372,0.3570697,108860.0,108850.0,0.62698005]
[1752048926580,0.3570697,108860.0,108850.0,0.58564562]
[1752048928674,0.3570697,108860.0,108850.0,0.57128216]
[1752048928872,0.3570697,108860.0,108850.0,0.58564546]
[1752048929380,0.3570697,108860.0,108850.0,0.668342]
[1752048931785,0.3570697,108860.0,108850.0,0.58564546]
[1752048931984,0.3570697,108860.0,108850.0,0.83652019]
[1752048932280,0.3570697,108860.0,108850.0,0.58564546]
[1752048934789,0.3570697,108860.0,108850.0,0.58564537]
[1752048936287,0.3570697,108860.0,108850.0,0.66834191]
[1752048936881,0.3570697,108860.0,108850.0,0.58564537]
[1752048937601,0.3406697,108860.0,108850.0,0.58564537]
[1752048939499,0.3569597,108860.0,108850.0,0.58564537]
[1752048939699,0.3406697,108860.0,108850.0,0.58564537]
[1752048940099,0.3569597,108860.0,108850.0,0.58564537]
[1752048940300,0.3406697,108860.0,108850.0,0.58564537]
[1752048943697,0.3406697,108860.0,108850.0,0.66834153]
[1752048943897,0.3406697,108860.0,108850.0,0.58564499]
[1752048945803,0.3569597,108860.0,108850.0,0.66834153]
[1752048945992,0.002,108860.0,108850.0,0.91921626]
[1752048946393,0.002,108860.0,108850.0,0.95171626]
[1752048946798,0.002,108860.0,108850.0,0.86901972]
[1752048947303,0.002,108860.0,108850.0,0.95171626]
[1752048947503,0.002,108860.0,108850.0,0.86901972]
[1752048948505,0.002,108860.0,108850.0,0.89656922]
[1752048949305,0.01829,108860.0,108850.0,0.89656922]
[1752048949505,0.002,108860.0,108850.0,0.89656922]
[1752048950402,0.002,108860.0,108850.0,1.27656922]
[1752048951499,0.28809267,108870.0,108860.0,0.1837009]
[1752048951699,0.28809267,108870.0,108860.0,0.86637237]
[1752048952095,0.25709267,108870.0,108860.0,0.90769754]
[1752048952301,0.25709267,108870.0,108860.0,0.86637237]
[1752048952907,0.25909267,108870.0,108860.0,0.86637237]
[1752048953808,0.26109267,108870.0,108860.0,0.86637237]
[1752048954310,0.25909267,108870.0,108860.0,0.86637237]
[1752048955717,0.28919267,108870.0,108860.0,0.86637237]
[1752048956403,0.28919267,108870.0,108860.0,0.94906891]
[1752048956804,0.28719267,108870.0,108860.0,0.94906891]
[1752048958811,0.28719267,108870.0,108860.0,0.86637237]
[1752048960912,0.28719267,108870.0,108860.0,0.85559987]
[1752048961111,0.28719267,108870.0,108860.0,0.8663707]
[1752048968014,0.28719267,108870.0,108860.0,0.86636888]
[1752048968915,0.10350867,108870.0,108860.0,0.86636888]
[1752048969516,0.10350867,108870.0,108860.0,1.22636888]
[1752048970616,0.10350867,108870.0,108860.0,1.21636888]
[1752048971311,0.10350867,108870.0,108860.0,1.29906542]
[1752048972415,0.10350867,108870.0,108860.0,1.29906524]
[1752048973319,0.10350867,108870.0,108860.0,0.94906524]
[1752048973514,0.10350867,108870.0,108860.0,1.28906524]
[1752048973711,0.10350867,108870.0,108860.0,0.94906524]
[1752048973916,0.10350867,108870.0,108860.0,1.31906524]
[1752048974118,0.10350867,108870.0,108860.0,1.28906524]
[1752048974617,0.10350867,108870.0,108860.0,1.29906524]
[1752048975120,0.10350867,108870.0,108860.0,0.94906524]
[1752048975413,0.10350867,108870.0,108860.0,1.26906524]
[1752048975727,0.10350867,108870.0,108860.0,0.94906524]
[1752048978123,0.10350867,108870.0,108860.0,0.89395865]
[1752048978916,0.10350867,108870.0,108860.0,0.86636322]
[1752048979623,0.10350867,108870.0,108860.0,1.20636322]
[1752048980524,0.10350867,108870.0,108860.0,1.23395865]
[1752048981025,0.10350867,108870.0,108860.0,0.89395865]
[1752048984328,0.10350867,108870.0,108860.0,0.88318782]
[1752048984530,0.10350867,108870.0,108860.0,0.89395851]
[1752048985031,0.10350867,108870.0,108860.0,0.39220905]
[1752048985231,0.5380674,108870.0,108860.0,0.36220905]
[1752048985433,0.5681674,108870.0,108860.0,0.58306378]
[1752048985625,0.5681674,108870.0,108860.0,0.33218905]
[1752048985828,0.5681674,108870.0,108860.0,0.83393851]
[1752048986019,0.31729267,108870.0,108860.0,0.83393851]
[1752048986228,0.16827663,108870.0,108860.0,0.75124197]
[1752048986432,0.35196063,108870.0,108860.0,0.75124197]
[1752048987234,0.35196063,108870.0,108860.0,0.73688105]
[1752048987433,0.35196063,108870.0,108860.0,0.75124232]
[1752048988533,0.35196063,108870.0,108860.0,1.10124232]
[1752048988733,0.35196063,108870.0,108860.0,1.12124232]
[1752048988935,0.35196063,108870.0,108860.0,1.10124232]
[1752048989535,0.35196063,108870.0,108860.0,0.75124232]
[1752048989932,0.35196063,108870.0,108860.0,0.74047163]
[1752048990330,0.35196063,108870.0,108860.0,0.74047145]
[1752048990627,0.35196063,108870.0,108860.0,0.72611036]
[1752048991336,0.35196063,108870.0,108860.0,1.09611036]
[1752048991538,0.35133792,108870.0,108860.0,1.09611036]
[1752048991936,0.35133792,108870.0,108860.0,0.72611036]
[1752048992439,0.35133792,108870.0,108860.0,1.08611036]
[1752048993138,0.35133792,108870.0,108860.0,0.72611036]
[1752048997242,0.36778792,108870.0,108860.0,0.2243609]
[1752048997735,0.61866265,108870.0,108860.0,0.47523563]
[1752048997938,0.36778792,108870.0,108860.0,0.72611036]
[1752049004045,0.36727792,108870.0,108860.0,0.1994609]
[1752049004245,0.36727792,108870.0,108860.0,0.43457563]
[1752049004548,0.61815265,108870.0,108860.0,0.43457563]
[1752049004949,0.36727792,108870.0,108860.0,0.43457563]
[1752049005145,0.61815265,108870.0,108860.0,0.43457563]
[1752049005346,0.61815265,108870.0,108860.0,0.45033563]
[1752049005547,0.61815265,108870.0,108860.0,0.43457563]
[1752049005940,0.61815265,108870.0,108860.0,0.45033563]
[1752049006149,0.61815265,108870.0,108860.0,0.1994609]
[1752049006451,0.61815265,108870.0,108860.0,0.45033563]
[1752049009247,0.61815265,108870.0,108860.0,0.43457563]
[1752049009445,0.61815265,108870.0,108860.0,0.45033563]
[1752049010051,0.61815265,108870.0,108860.0,0.1994609]
[1752049010450,0.61815265,108870.0,108860.0,0.45033563]
[1752049011453,0.61815265,108870.0,108860.0,0.70121036]
[1752049011651,0.36727792,108870.0,108860.0,0.70121036]
[1752049011851,0.61815265,108870.0,108860.0,0.70121036]
[1752049012252,0.61815265,108870.0,108860.0,0.1994609]
[1752049012444,0.61815265,108870.0,108860.0,0.45033563]
[1752049012751,0.61815265,108870.0,108860.0,0.47311563]
[1752049015256,0.36727792,108870.0,108860.0,0.72399036]
[1752049015458,0.35133792,108870.0,108860.0,0.75719036]
[1752049015959,0.36727792,108870.0,108860.0,0.75719036]
[1752049016153,0.35133792,108870.0,108860.0,0.75719036]
[1752049016454,0.33323267,108870.0,108860.0,0.89501219]
[1752049016655,0.33323267,108870.0,108860.0,0.39326273]
[1752049016957,0.33323267,108870.0,108860.0,0.90578343]
[1752049017458,0.33323267,108870.0,108860.0,1.24578343]
[1752049017659,0.30313267,108870.0,108860.0,1.27708343]
[1752049018154,0.28719267,108870.0,108860.0,1.27708343]
[1752049018562,0.25709267,108870.0,108860.0,1.27708343]
[1752049019359,0.25709267,108870.0,108860.0,1.22196122]
[1752049019553,0.25709267,108870.0,108860.0,0.72021176]
[1752049019757,0.28889267,108870.0,108860.0,1.22196122]
[1752049020766,0.28889267,108870.0,108860.0,1.23632215]
[1752049022063,0.28889267,108870.0,108860.0,1.23632161]
[1752049023065,0.28889267,108870.0,108860.0,1.22196068]
[1752049023256,0.28889267,108870.0,108860.0,1.23632161]
[1752049023457,0.28889267,108870.0,108860.0,1.2914328]
[1752049023863,0.28889267,108870.0,108860.0,0.78968334]
[1752049024169,0.28889267,108870.0,108860.0,1.2914328]
[1752049028664,0.28889267,108870.0,108860.0,1.23632161]
[1752049029263,0.28889267,108870.0,108860.0,1.29142543]
[1752049033467,1e-08,108870.0,108860.0,1.54230016]
[1752049033664,0.2962885,108880.0,108870.0,0.1836839]
[1752049033864,0.3115785,108880.0,108870.0,1.30158363]
[1752049034068,0.3115785,108880.0,108870.0,1.21888401]
[1752049034261,0.2656617,108880.0,108870.0,1.21888401]
[1752049035077,0.2676617,108880.0,108870.0,0.71713455]
[1752049035264,0.2676617,108880.0,108870.0,1.21888401]
[1752049035464,0.0359,108880.0,108870.0,1.21888401]
[1752049035665,0.219567,108880.0,108870.0,1.25168401]
[1752049036072,0.004,108880.0,108870.0,1.25168401]
[1752049036262,0.2468511,108890.0,108880.0,0.183667]
[1752049036465,0.2468511,108890.0,108880.0,1.1570584]
[1752049036666,0.2468511,108890.0,108880.0,1.1876584]
[1752049037368,0.32041189,108890.0,108880.0,1.1876584]